bitfinex/quotes_BTCUSD_20240908
["timestamp","ask_amount","ask_price","bid_price","bid_amount"]
[1725811421863,0.00081,53879.0,53878.0,1.74736]
[1725811422076,0.00081,53879.0,53878.0,2.044327]
[1725811422311,0.00081,53879.0,53878.0,2.22907939]
[1725811422763,0.00081,53879.0,53878.0,2.25307939]
[1725811423445,0.00081,53879.0,53878.0,2.23907939]
[1725811423649,0.00081,53879.0,53878.0,2.20775033]
[1725811423883,0.00081,53879.0,53878.0,2.23907761]
[1725811424304,0.00081,53879.0,53878.0,2.25307761]
[1725811424785,0.00081,53879.0,53878.0,2.23907726]
[1725811425003,0.00081,53879.0,53878.0,2.35907726]
[1725811425472,0.00081,53879.0,53878.0,2.37307726]
[1725811425710,0.00081,53879.0,53878.0,2.65604426]
[1725811425927,0.00081,53879.0,53878.0,2.91660379]
[1725811426203,0.00081,53879.0,53878.0,2.94580379]
[1725811426411,0.00081,53879.0,53878.0,2.95980379]
[1725811426649,0.00081,53879.0,53878.0,2.96180379]
[1725811426861,0.00081,53879.0,53878.0,2.94780379]
[1725811427094,0.00081,53879.0,53878.0,2.96180379]
[1725811427316,0.01236997,53893.0,53892.0,0.85]
[1725811427545,0.44523,53905.0,53894.0,0.445318]
[1725811427758,0.148412,53904.0,53894.0,0.75963043]
[1725811427966,0.16090797,53906.0,53894.0,0.75963043]
[1725811428204,0.148411,53905.0,53894.0,0.75963043]
[1725811428709,0.16090597,53906.0,53894.0,0.77363043]
[1725811428928,0.16090597,53906.0,53894.0,0.78763043]
[1725811429164,0.16090797,53906.0,53894.0,1.07050943]
[1725811429397,0.148409,53905.0,53894.0,1.08450943]
[1725811430057,0.148409,53905.0,53894.0,1.07050943]
[1725811430516,0.3755,53895.0,53894.0,1.08450527]
[1725811430737,0.3755,53895.0,53894.0,1.10193434]
[1725811430947,0.3755,53895.0,53894.0,1.16699991]
[1725811431151,0.3755,53895.0,53894.0,1.18099991]
[1725811431804,0.3755,53895.0,53894.0,1.16699991]
[1725811432509,0.3755,53895.0,53894.0,0.473318]
[1725811432996,0.3755,53895.0,53894.0,0.042]
[1725811433227,0.820809,53895.0,53894.0,0.042]
[1725811433684,0.14844,53894.0,53892.0,0.85]
[1725811433936,0.2064,53893.0,53892.0,0.85]
[1725811434139,0.354842,53893.0,53892.0,0.85]
[1725811434369,0.148458,53887.0,53886.0,0.36743141]
[1725811434586,0.526558,53887.0,53886.0,0.35]
[1725811434794,0.823475,53887.0,53886.0,0.35]
[1725811435461,0.3781,53887.0,53886.0,0.35]
[1725811435689,0.526558,53887.0,53886.0,0.361]
[1725811435902,0.526558,53887.0,53886.0,0.375]
[1725811436628,0.823475,53887.0,53886.0,0.375]
[1725811436866,0.3781,53887.0,53886.0,0.375]
[1725811437293,0.3781,53887.0,53886.0,0.523461]
[1725811437507,0.3781,53887.0,53886.0,0.364]
[1725811437720,0.3781,53887.0,53886.0,0.375]
[1725811437930,0.3781,53887.0,53886.0,0.523461]
[1725811438174,0.3781,53887.0,53886.0,1.40136239]
[1725811438394,0.3781,53887.0,53886.0,1.37636239]
[1725811438613,0.3781,53887.0,53886.0,1.21661]
[1725811439041,0.3781,53887.0,53886.0,0.919687]
[1725811439466,0.3781,53887.0,53886.0,0.905687]
[1725811439684,0.3781,53887.0,53886.0,0.919687]
[1725811439903,0.3781,53887.0,53886.0,1.21661]
[1725811440168,0.3781,53887.0,53886.0,1.19161]
[1725811440622,0.3869,53894.0,53893.0,0.498439]
[1725811440835,0.3869,53894.0,53893.0,0.35]
[1725811441056,0.832218,53894.0,53893.0,0.35]
[1725811441499,0.2115,53889.0,53886.0,0.528]
[1725811441746,0.1754,53888.0,53886.0,0.66246]
[1725811442405,0.323856,53888.0,53886.0,0.5]
[1725811442657,0.1754,53888.0,53886.0,0.5]
[1725811442884,0.212314,53895.0,53886.0,0.5]
[1725811443096,0.148442,53893.0,53888.0,0.148455]
[1725811443304,0.148445,53892.0,53886.0,0.648459]
[1725811443517,0.2115,53891.0,53887.0,0.148458]
[1725811443750,0.1754,53888.0,53886.0,0.5]
[1725811443977,0.323856,53888.0,53886.0,0.514]
[1725811444206,0.323856,53888.0,53886.0,0.528]
[1725811444432,0.359958,53887.0,53886.0,0.528]
[1725811444653,0.656875,53887.0,53886.0,0.528]
[1725811444882,0.359958,53887.0,53886.0,0.528]
[1725811445323,0.359958,53887.0,53886.0,0.514]
[1725811445784,0.359958,53887.0,53886.0,0.528]
[1725811445990,0.359958,53887.0,53886.0,0.514]
[1725811446217,0.2115,53887.0,53886.0,0.514]
[1725811446440,0.2115,53887.0,53886.0,0.676461]
[1725811446867,0.2115,53887.0,53886.0,0.973384]
[1725811447088,0.2115,53887.0,53886.0,0.959384]
[1725811447320,0.2115,53887.0,53886.0,0.662461]
[1725811447533,0.2115,53887.0,53886.0,0.676461]
[1725811447974,0.2115,53887.0,53886.0,0.528]
[1725811448411,0.2115,53887.0,53886.0,0.676461]
[1725811450754,0.2115,53887.0,53886.0,0.528]
[1725811450965,0.359958,53887.0,53886.0,0.528]
[1725811451181,0.656875,53887.0,53886.0,0.528]
[1725811452342,0.828075,53887.0,53886.0,0.528]
[1725811452770,1.124992,53887.0,53886.0,0.028]
[1725811453199,0.820441,53879.0,53878.0,0.001628]
[1725811453417,1.414363,53879.0,53878.0,0.001628]
[1725811453842,1.117402,53879.0,53878.0,0.001628]
[1725811454069,1.217402,53879.0,53878.0,0.001628]
[1725811454300,1.117402,53879.0,53878.0,0.001628]
[1725811454950,1.117402,53879.0,53878.0,0.005628]
[1725811455339,1.118402,53879.0,53878.0,0.019628]
[1725811455579,1.117402,53879.0,53878.0,0.005628]
[1725811456024,1.118402,53879.0,53878.0,0.019628]
[1725811456269,0.742402,53879.0,53878.0,0.005628]
[1725811456526,0.2038,53891.0,53889.0,0.35]
[1725811456776,0.2038,53891.0,53890.0,0.14845]
[1725811456997,0.000814,53893.0,53889.0,0.35]
[1725811457219,0.000814,53893.0,53892.0,0.148445]
[1725811457437,0.000814,53893.0,53892.0,0.445335]
[1725811457650,0.00059067,53893.0,53892.0,0.24812484]
[1725811457896,0.00059067,53893.0,53892.0,0.148445]
[1725811458992,0.00059067,53893.0,53892.0,0.162445]
[1725811459232,0.00059067,53893.0,53892.0,0.445335]
[1725811459483,0.00059067,53893.0,53892.0,0.148445]
[1725811459715,0.00159067,53893.0,53892.0,0.161445]
[1725811459928,0.00059067,53893.0,53892.0,0.148445]
[1725811460167,0.00159067,53893.0,53892.0,0.161445]
[1725811460591,0.00159067,53893.0,53892.0,0.458335]
[1725811461022,0.00259067,53893.0,53892.0,0.472335]
[1725811461472,0.00059067,53893.0,53892.0,0.445335]
[1725811461682,0.00159067,53893.0,53892.0,0.459335]
[1725811461881,0.00159067,53893.0,53892.0,0.473335]
[1725811462134,0.00159067,53893.0,53892.0,0.459335]
[1725811462355,0.00059067,53893.0,53892.0,0.459335]
[1725811462809,0.00059067,53893.0,53892.0,0.445335]
[1725811463026,0.00059067,53893.0,53892.0,0.459335]
[1725811463674,0.00159067,53893.0,53892.0,0.473335]
[1725811463903,0.00159067,53893.0,53892.0,0.85556168]
[1725811464587,0.00159067,53893.0,53892.0,1.15245168]
[1725811464818,0.00159067,53893.0,53892.0,1.33720407]
[1725811465273,0.00159067,53893.0,53892.0,1.04031407]
[1725811465489,0.00159067,53893.0,53892.0,1.05631407]
[1725811465705,0.00159067,53893.0,53892.0,1.43320407]
[1725811465929,0.00159067,53893.0,53892.0,1.71609407]
[1725811466193,0.00159067,53893.0,53892.0,1.41720407]
[1725811466420,0.00159067,53893.0,53892.0,1.43120407]
[1725811467588,0.00081,53898.0,53897.0,0.35]
[1725811467807,0.00081,53898.0,53897.0,5.58103896]
[1725811468033,0.00081,53898.0,53897.0,6.22814371]
[1725811468244,0.00081,53898.0,53897.0,6.52918024]
[1725811468500,0.00081,53898.0,53897.0,6.55266645]
[1725811468946,0.00181,53898.0,53897.0,9.54917117]
[1725811469506,0.00013,53906.0,53897.0,9.54917117]
[1725811469507,0.00013,53906.0,53905.0,2.267681]
[1725811469834,0.00013,53906.0,53905.0,4.77757456]
[1725811470061,0.00013,53906.0,53905.0,4.87257456]
[1725811470304,0.00013,53906.0,53905.0,5.10646614]
[1725811470526,0.00013,53906.0,53905.0,5.18126652]
[1725811470765,0.00013,53906.0,53905.0,5.12587456]
[1725811471721,0.01236997,53924.0,53913.0,2.461883]
[1725811471956,0.01236997,53924.0,53913.0,7.58123144]
[1725811472169,0.01236997,53924.0,53913.0,7.91944673]
[1725811472672,0.01236997,53924.0,53913.0,7.95514673]
[1725811473391,0.01236997,53924.0,53913.0,7.96914673]
[1725811473634,0.80061,53933.0,53913.0,6.91274673]
[1725811473635,0.00081,53933.0,53913.0,6.91274673]
[1725811473861,0.2154,53919.0,53913.0,7.44027273]
[1725811474104,0.2154,53923.0,53913.0,7.45627273]
[1725811474620,0.00070767,53914.0,53913.0,7.45627273]
[1725811474844,0.00070767,53914.0,53913.0,7.44227273]
[1725811475074,0.00070767,53914.0,53913.0,7.75304673]
[1725811475311,0.00070767,53914.0,53913.0,7.44227273]
[1725811475543,0.00070767,53914.0,53913.0,7.75304673]
[1725811476000,0.00070767,53914.0,53913.0,7.44027273]
[1725811476246,0.00070767,53914.0,53913.0,7.45627273]
[1725811476462,0.00070767,53914.0,53913.0,7.44227273]
[1725811476684,0.00070767,53914.0,53913.0,7.42827273]
[1725811476914,0.00070767,53914.0,53913.0,7.44227273]
[1725811477194,0.00070767,53914.0,53913.0,5.60737668]
[1725811477422,0.00070767,53914.0,53913.0,5.59337668]
[1725811477649,0.00070767,53914.0,53913.0,5.60737668]
[1725811477890,0.00070767,53914.0,53913.0,5.62137668]
[1725811478114,0.00070767,53914.0,53913.0,5.59337668]
[1725811478581,0.00070767,53914.0,53913.0,5.62137668]
[1725811478841,0.00070767,53914.0,53913.0,5.60737668]
[1725811479084,0.00070767,53914.0,53913.0,5.91815068]
[1725811479319,0.00070767,53914.0,53913.0,6.15725068]
[1725811479568,0.00070767,53914.0,53913.0,6.13425068]
[1725811479795,0.00070767,53914.0,53913.0,6.13225068]
[1725811480026,0.00070767,53914.0,53913.0,6.66229068]
[1725811480027,6.7e-07,53914.0,53913.0,6.66229068]
[1725811480252,6.7e-07,53914.0,53913.0,6.54234068]
[1725811480482,6.7e-07,53914.0,53913.0,6.71106305]
[1725811480719,6.7e-07,53914.0,53913.0,6.69706305]
[1725811480997,0.01236997,53931.0,53926.0,2.267159]
[1725811481232,0.00081,53933.0,53926.0,7.38016842]
[1725811481460,0.2044,53931.0,53926.0,7.38016842]
[1725811481916,0.00081,53933.0,53926.0,7.38016842]
[1725811482375,0.00081,53933.0,53926.0,0.94366098]
[1725811482376,0.37651,53927.0,53926.0,0.94366098]
[1725811483036,0.37651,53927.0,53926.0,0.95766098]
[1725811483250,0.524858,53927.0,53926.0,0.364]
[1725811483919,0.524858,53927.0,53926.0,0.378]
[1725811484147,0.37651,53927.0,53926.0,0.378]
[1725811484359,0.524858,53927.0,53926.0,0.35]
[1725811484531,0.524858,53927.0,53926.0,0.364]
[1725811484807,0.37651,53927.0,53926.0,0.47390235]
[1725811484994,0.37651,53927.0,53926.0,0.45990235]
[1725811485442,0.37651,53927.0,53926.0,0.46790235]
[1725811486066,0.37651,53927.0,53926.0,0.45390235]
[1725811486620,0.37651,53927.0,53926.0,0.44590235]
[1725811486802,0.148356,53925.0,53920.0,0.85]
[1725811487007,0.319654,53925.0,53920.0,0.85]
[1725811487255,0.319654,53925.0,53920.0,0.998367]
[1725811487256,0.2044,53924.0,53920.0,0.998367]
[1725811487485,0.2044,53924.0,53920.0,0.85]
[1725811487649,0.352756,53924.0,53920.0,0.85]
[1725811487866,0.2044,53924.0,53920.0,0.85]
[1725811488074,0.2044,53924.0,53920.0,0.864]
[1725811488296,0.2044,53924.0,53921.0,0.148365]
[1725811488911,0.2044,53924.0,53920.0,0.863]
[1725811488912,0.1713,53923.0,53920.0,0.863]
[1725811489134,0.2044,53922.0,53921.0,0.148364]
[1725811489335,0.2044,53922.0,53921.0,0.098877]
[1725811489532,0.501124,53922.0,53920.0,1.077]
[1725811489746,0.1713,53921.0,53920.0,1.077]
[1725811489948,0.1713,53921.0,53920.0,1.311244]
[1725811490177,0.1713,53921.0,53920.0,1.607979]
[1725811490585,0.1713,53921.0,53920.0,1.890714]
[1725811491189,0.1713,53921.0,53920.0,1.904714]
[1725811491361,0.1713,53921.0,53920.0,1.607979]
[1725811491575,0.1713,53921.0,53920.0,1.297244]
[1725811491787,0.1713,53921.0,53920.0,1.148877]
[1725811491990,0.3804,53921.0,53920.0,1.325244]
[1725811492194,0.3804,53921.0,53920.0,1.311244]
[1725811492671,0.3804,53921.0,53920.0,1.325244]
[1725811493312,0.3804,53921.0,53920.0,1.607979]
[1725811493517,0.3804,53921.0,53920.0,1.621979]
[1725811493725,0.3804,53921.0,53920.0,2.40020139]
[1725811493939,0.00081,53927.0,53926.0,1.295053]
[1725811494139,0.00081,53927.0,53926.0,1.39294979]
[1725811494350,0.37671,53927.0,53926.0,0.94789679]
[1725811494773,0.37671,53927.0,53926.0,1.39294979]
[1725811495179,0.37671,53927.0,53926.0,1.40694979]
[1725811495497,0.37671,53927.0,53926.0,1.70365179]
[1725811495695,0.37671,53927.0,53926.0,1.71765179]
[1725811495907,0.37671,53927.0,53926.0,1.70365179]
[1725811496128,0.00081,53927.0,53926.0,1.70365179]
[1725811496568,0.00081,53927.0,53926.0,2.00035379]
[1725811496784,0.06369819,53930.0,53929.0,0.741715]
[1725811496985,0.00081,53933.0,53932.0,1.591672]
[1725811497115,0.00081,53933.0,53932.0,1.68824802]
[1725811498379,0.00081,53933.0,53932.0,1.70124802]
[1725811498580,0.00081,53933.0,53932.0,1.71524802]
[1725811498735,0.00081,53933.0,53932.0,1.68824802]
[1725811498940,0.00081,53933.0,53932.0,1.98491702]
[1725811499178,0.00081,53933.0,53932.0,2.01291702]
[1725811500267,0.00081,53933.0,53932.0,1.99891702]
[1725811500473,0.00081,53933.0,53932.0,1.98491702]
[1725811500680,0.00081,53933.0,53932.0,1.99891702]
[1725811500913,0.00081,53933.0,53932.0,1.70224802]
[1725811501126,0.00081,53933.0,53932.0,1.71624802]
[1725811501339,0.00081,53933.0,53932.0,1.70224802]
[1725811501545,0.00081,53933.0,53932.0,1.68824802]
[1725811501761,0.00081,53933.0,53932.0,2.19991702]
[1725811501970,0.00081,53933.0,53932.0,2.01291702]
[1725811502204,0.36151,53933.0,53932.0,1.309003]
[1725811502661,0.36151,53933.0,53932.0,1.012334]
[1725811502877,0.36151,53933.0,53932.0,1.10685105]
[1725811503520,0.36151,53933.0,53932.0,1.09285105]
[1725811503754,0.36151,53933.0,53932.0,1.40352005]
[1725811503976,0.36151,53933.0,53932.0,1.41752005]
[1725811504420,0.36151,53933.0,53932.0,1.40352005]
[1725811504636,0.36151,53933.0,53932.0,1.41752005]
[1725811505102,0.00081,53933.0,53932.0,1.71418905]
[1725811505965,0.00081,53933.0,53932.0,2.01085805]
[1725811509294,0.00081,53933.0,53932.0,2.84247944]
[1725811509520,0.00081,53933.0,53932.0,2.86247944]
[1725811510221,0.00081,53933.0,53932.0,3.15914844]
[1725811510450,0.00081,53933.0,53932.0,3.23114844]
[1725811510699,0.00081,53933.0,53932.0,3.44514844]
[1725811510950,0.00081,53933.0,53932.0,3.45914844]
[1725811511177,0.00081,53933.0,53932.0,3.43114844]
[1725811511457,0.00081,53933.0,53932.0,3.44514844]
[1725811511667,0.00081,53933.0,53932.0,3.16247944]
[1725811512306,0.00081,53933.0,53932.0,3.44714844]
[1725811512964,0.00081,53933.0,53932.0,3.56560844]
[1725811513395,0.00081,53933.0,53932.0,3.62575433]
[1725811513617,0.00081,53933.0,53932.0,3.65175433]
[1725811513838,0.00081,53933.0,53932.0,3.85246365]
[1725811514050,0.01055,53938.0,53932.0,3.85246365]
[1725811514051,0.01055,53938.0,53937.0,0.4191]
[1725811514312,0.01055,53938.0,53937.0,3.32702828]
[1725811514526,0.01055,53938.0,53937.0,3.24598628]
[1725811514734,0.01055,53938.0,53937.0,3.21823211]
[1725811514948,0.01055,53938.0,53937.0,3.16279425]
[1725811515452,0.01055,53938.0,53937.0,3.19079425]
[1725811515670,0.01055,53938.0,53937.0,1.93341025]
[1725811515907,0.17485,53938.0,53937.0,2.69981025]
[1725811516326,0.01055,53938.0,53937.0,3.04645225]
[1725811516748,0.01055,53938.0,53937.0,3.01845225]
[1725811516956,0.01055,53938.0,53937.0,3.03845225]
[1725811517169,0.01055,53938.0,53937.0,3.06645225]
[1725811517372,0.01055,53938.0,53937.0,3.04245225]
[1725811517584,0.01055,53938.0,53937.0,3.03245225]
[1725811517800,0.01055,53938.0,53937.0,3.05245225]
[1725811518018,0.01055,53938.0,53937.0,3.06645225]
[1725811518695,0.01055,53938.0,53937.0,3.05245225]
[1725811519839,0.01055,53938.0,53937.0,3.04045225]
[1725811520041,0.01055,53938.0,53937.0,3.05445225]
[1725811520293,0.01055,53938.0,53937.0,3.06845225]
[1725811520499,0.01055,53938.0,53937.0,3.26635225]
[1725811520958,0.01055,53938.0,53937.0,3.34064325]
[1725811521834,0.011363,53938.0,53937.0,3.34064325]
[1725811522504,0.011363,53938.0,53937.0,3.63728525]
[1725811523369,0.011363,53938.0,53937.0,3.76518525]
[1725811523576,0.011363,53938.0,53937.0,3.86518525]
[1725811524012,0.011363,53938.0,53937.0,3.41168525]
[1725811524883,0.011363,53938.0,53937.0,3.70832725]
[1725811525792,0.011363,53938.0,53937.0,3.41168525]
[1725811526222,0.011363,53938.0,53937.0,3.70832725]
[1725811526444,0.011363,53938.0,53937.0,3.08588525]
[1725811526695,0.011363,53938.0,53937.0,3.66874325]
[1725811526930,0.011363,53938.0,53937.0,3.57874325]
[1725811527136,0.011363,53938.0,53937.0,3.51445225]
[1725811527353,0.011363,53938.0,53937.0,3.58874625]
[1725811527567,0.011363,53938.0,53937.0,3.59874625]
[1725811527783,0.011363,53938.0,53937.0,3.60074625]
[1725811528474,0.011363,53938.0,53937.0,3.59874625]
[1725811528685,0.011363,53938.0,53937.0,3.58874625]
[1725811528915,0.011363,53938.0,53937.0,3.50645225]
[1725811529579,0.011363,53938.0,53937.0,3.51645225]
[1725811530023,0.011363,53938.0,53937.0,3.52645225]
[1725811530992,0.011363,53938.0,53937.0,4.12099425]
[1725811531200,0.011363,53938.0,53937.0,4.24889425]
[1725811531432,0.011363,53938.0,53937.0,3.79539425]
[1725811531677,0.011363,53938.0,53937.0,4.09203625]
[1725811531890,0.011363,53938.0,53937.0,3.79539425]
[1725811532337,0.011363,53938.0,53937.0,4.09203625]
[1725811533411,0.011363,53938.0,53937.0,3.79539425]
[1725811533645,0.011363,53938.0,53937.0,1.780963]
[1725811533646,0.383263,53938.0,53937.0,1.780963]
[1725811533881,0.383263,53938.0,53937.0,0.5]
[1725811533882,0.54884579,53938.0,53937.0,0.5]
[1725811534157,0.296658,53934.0,53932.0,0.2]
[1725811534381,1.16543884,53933.0,53932.0,0.09214227]
[1725811534586,1.19305932,53933.0,53932.0,0.09214227]
[1725811535245,0.741687,53931.0,53921.0,0.85]
[1725811535477,0.88479727,53931.0,53921.0,0.85]
[1725811535698,0.445062,53925.0,53921.0,0.85]
[1725811535931,0.41677619,53925.0,53915.0,0.35]
[1725811536169,0.319675,53931.0,53915.0,0.35]
[1725811536170,0.1611,53918.0,53915.0,0.35]
[1725811536384,0.22236479,53917.0,53915.0,0.35]
[1725811536607,0.53184279,53916.0,53915.0,0.35]
[1725811536813,0.82851449,53916.0,53915.0,0.09885487]
[1725811537030,0.2051,53915.0,53914.0,0.001626]
[1725811537255,0.353481,53915.0,53914.0,0.001626]
[1725811537697,0.650244,53915.0,53914.0,0.001626]
[1725811538563,0.353481,53915.0,53914.0,0.001626]
[1725811538804,0.354481,53915.0,53914.0,0.014626]
[1725811539050,0.947007,53915.0,53914.0,0.001626]
[1725811539269,1.131107,53915.0,53914.0,0.001626]
[1725811539504,1.132107,53915.0,53914.0,0.014626]
[1725811540199,1.132107,53915.0,53914.0,0.015626]
[1725811540434,1.132107,53915.0,53914.0,0.002626]
[1725811540930,1.131107,53915.0,53914.0,0.001626]
[1725811541179,1.132107,53915.0,53914.0,0.002626]
[1725811541392,0.3672,53915.0,53914.0,0.10194037]
[1725811541609,0.3672,53915.0,53914.0,0.015626]
[1725811541610,0.3682,53915.0,53914.0,0.015626]
[1725811541825,0.3682,53915.0,53914.0,0.11494037]
[1725811542080,0.515581,53915.0,53914.0,0.10194037]
[1725811542301,0.516581,53915.0,53914.0,0.11494037]
[1725811542973,0.3682,53915.0,53914.0,0.11494037]
[1725811543633,0.3682,53915.0,53914.0,0.96494037]
[1725811544121,0.3682,53915.0,53914.0,1.11332437]
[1725811544341,0.3682,53915.0,53914.0,1.41009237]
[1725811544584,0.2071,53915.0,53914.0,1.70686037]
[1725811545482,0.002,53915.0,53914.0,2.18838076]
[1725811545773,0.3662,53920.0,53914.0,2.18838076]
[1725811545774,0.3662,53920.0,53919.0,0.445111]
[1725811545969,0.3662,53920.0,53919.0,0.53828074]
[1725811546212,0.3662,53920.0,53919.0,0.83502174]
[1725811546444,0.3662,53920.0,53919.0,0.53828074]
[1725811547364,0.3662,53920.0,53919.0,1.03277413]
[1725811547365,0.001,53920.0,53919.0,1.03277413]
[1725811547600,0.2051,53925.0,53924.0,1.295069]
[1725811547817,0.2051,53925.0,53924.0,1.38928113]
[1725811548262,0.2051,53925.0,53924.0,1.68599413]
[1725811549410,0.2051,53925.0,53924.0,1.69999413]
[1725811549655,0.2051,53925.0,53924.0,1.68599413]
[1725811550095,0.2051,53929.0,53928.0,0.741727]
[1725811550330,0.2051,53929.0,53928.0,0.54125271]
[1725811550752,0.2051,53929.0,53928.0,0.83794371]
[1725811550997,0.2051,53929.0,53928.0,0.54125271]
[1725811551696,0.248321,53937.0,53928.0,0.54125271]
[1725811551697,0.1635,53937.0,53936.0,0.44497]
[1725811551914,0.011363,53938.0,53937.0,0.741605]
[1725811552135,0.011363,53938.0,53937.0,0.83686102]
[1725811553243,0.011363,53938.0,53937.0,0.86486102]
[1725811553971,0.011363,53938.0,53937.0,0.83686102]
[1725811556074,0.011363,53938.0,53937.0,0.85086102]
[1725811556538,0.011363,53938.0,53937.0,0.86486102]
[1725811556759,0.011363,53938.0,53937.0,0.85086102]
[1725811556977,0.011363,53938.0,53937.0,0.86486102]
[1725811557182,0.011363,53938.0,53937.0,0.56821902]
[1725811557468,0.011363,53938.0,53937.0,1.08561341]
[1725811557679,0.011363,53938.0,53937.0,1.38225541]
[1725811558145,0.011363,53938.0,53937.0,1.36825541]
[1725811558800,0.011363,53938.0,53937.0,1.38225541]
[1725811559013,0.011363,53938.0,53937.0,1.84599741]
[1725811559236,0.011363,53938.0,53937.0,1.85999741]
[1725811559448,0.011363,53938.0,53937.0,1.87399741]
[1725811559646,0.011363,53938.0,53937.0,1.85999741]
[1725811559887,0.011363,53938.0,53937.0,1.84599741]
[1725811560305,0.011363,53938.0,53937.0,1.85999741]
[1725811560518,0.011363,53938.0,53937.0,1.57535541]
[1725811560695,0.011363,53938.0,53937.0,1.56135541]
[1725811561055,0.011363,53938.0,53937.0,1.57535541]
[1725811561329,0.011363,53938.0,53937.0,1.87199741]
[1725811561582,0.011363,53938.0,53937.0,1.87399741]
[1725811561891,0.011363,53938.0,53937.0,1.85999741]
[1725811562111,0.011363,53938.0,53937.0,1.88636741]
[1725811562315,0.011363,53938.0,53937.0,1.87236741]
[1725811562535,0.011363,53938.0,53937.0,1.38062541]
[1725811562750,0.011363,53938.0,53937.0,1.71486102]
[1725811562978,0.011363,53938.0,53937.0,1.70086102]
[1725811564067,0.011363,53938.0,53937.0,1.68686102]
[1725811564322,0.011363,53938.0,53937.0,1.70086102]
[1725811564530,0.011363,53938.0,53937.0,1.99750302]
[1725811564712,0.011363,53938.0,53937.0,1.70086102]
[1725811564974,0.011363,53938.0,53937.0,1.71486102]
[1725811565185,0.011363,53938.0,53937.0,1.70086102]
[1725811565615,0.011363,53938.0,53937.0,1.71486102]
[1725811565825,0.011363,53938.0,53937.0,1.68686102]
[1725811566006,0.011363,53938.0,53937.0,0.54021902]
[1725811566234,0.011363,53938.0,53937.0,1.40421902]
[1725811566438,0.011363,53938.0,53937.0,1.71486102]
[1725811567078,0.011363,53938.0,53937.0,1.40421902]
[1725811567283,0.011363,53938.0,53937.0,1.41821902]
[1725811568206,0.011363,53938.0,53937.0,1.71486102]
[1725811568629,0.011363,53938.0,53937.0,1.70086102]
[1725811568895,0.011363,53938.0,53937.0,1.68686102]
[1725811569115,0.011363,53938.0,53937.0,1.71486102]
[1725811569787,0.011363,53938.0,53937.0,1.12157702]
[1725811570003,0.011363,53938.0,53937.0,1.13557702]
[1725811570226,0.011363,53938.0,53937.0,0.98725602]
[1725811570438,0.01725211,53938.0,53933.0,0.001626]
[1725811570652,0.148324,53936.0,53933.0,0.001626]
[1725811570860,0.01725211,53935.0,53933.0,0.001626]
[1725811571075,0.21445211,53934.0,53933.0,0.001626]
[1725811571250,0.21445211,53934.0,53933.0,0.24322013]
[1725811572271,0.21445211,53934.0,53933.0,0.83654813]
[1725811572856,0.1972,53934.0,53933.0,0.85054813]
[1725811573059,0.1972,53934.0,53933.0,0.86454813]
[1725811573275,0.21445324,53934.0,53933.0,0.56788413]
[1725811573679,0.21445324,53934.0,53933.0,0.53988413]
[1725811573902,0.21445324,53934.0,53933.0,0.55388413]
[1725811574307,0.21445324,53934.0,53933.0,0.85054813]
[1725811574516,0.01725324,53934.0,53933.0,0.85054813]
[1725811574939,0.09653901,53937.0,53936.0,1.29497]
[1725811575142,0.1137905,53937.0,53936.0,1.39336886]
[1725811575576,0.8553955,53937.0,53936.0,0.09839886]
[1725811575800,0.444987,53934.0,53933.0,0.015626]
[1725811576014,0.46223849,53934.0,53933.0,0.015626]
[1725811576221,0.16557888,53934.0,53933.0,0.001626]
[1725811576491,0.46223688,53934.0,53933.0,0.001626]
[1725811576930,0.16557888,53934.0,53933.0,0.001626]
[1725811577777,0.46223688,53934.0,53933.0,0.001626]
[1725811578001,0.46223688,53934.0,53933.0,0.09734183]
[1725811578002,0.36984988,53934.0,53933.0,0.09734183]
[1725811578236,0.21304988,53934.0,53933.0,0.25967383]
[1725811578453,0.21304988,53934.0,53933.0,0.26867383]
[1725811578682,0.21304988,53934.0,53933.0,0.55133783]
[1725811578886,0.21304988,53934.0,53933.0,0.55633783]
[1725811579092,0.21304988,53934.0,53933.0,0.55133783]
[1725811579525,0.21304988,53934.0,53933.0,0.56533783]
[1725811579764,0.21304988,53934.0,53933.0,0.54233783]
[1725811579983,0.21304988,53934.0,53933.0,0.55533783]
[1725811580221,0.21304988,53934.0,53933.0,0.27267383]
[1725811580629,0.21304988,53934.0,53933.0,0.12434183]
[1725811580854,0.36137888,53934.0,53933.0,0.12434183]
[1725811581132,0.81483688,53934.0,53933.0,0.028626]
[1725811581385,0.148371,53919.0,53914.0,0.351626]
[1725811581627,0.70112098,53934.0,53914.0,0.351626]
[1725811581628,0.3526,53917.0,53914.0,0.001626]
[1725811581839,0.36984988,53917.0,53915.0,0.09846665]
[1725811582052,0.36984988,53917.0,53915.0,0.24684665]
[1725811582265,0.36984988,53917.0,53916.0,0.150006]
[1725811582515,0.21304988,53917.0,53916.0,0.150006]
[1725811582768,0.21304988,53917.0,53916.0,0.26247265]
[1725811582976,0.21304988,53917.0,53916.0,0.24847265]
[1725811583180,0.1958,53917.0,53916.0,0.24847265]
[1725811583392,0.21304449,53917.0,53916.0,0.26247265]
[1725811584092,0.01724449,53917.0,53916.0,0.55922965]
[1725811584510,0.01724449,53917.0,53916.0,0.85598665]
[1725811584733,0.1958,53929.0,53928.0,0.445036]
[1725811584974,0.1958,53929.0,53928.0,0.83941662]
[1725811584975,0.01724704,53929.0,53928.0,0.83941662]
[1725811585401,0.1958,53934.0,53933.0,0.74166]
[1725811585611,0.21304991,53934.0,53932.0,0.85]
[1725811585818,0.21304991,53934.0,53932.0,0.998334]
[1725811585819,0.01724991,53933.0,53932.0,0.998334]
[1725811586052,0.01724991,53933.0,53932.0,1.09602362]
[1725811586886,0.01724991,53933.0,53932.0,1.10502362]
[1725811587307,0.01724991,53933.0,53932.0,1.40169262]
[1725811587747,0.01724991,53933.0,53932.0,1.41469262]
[1725811588195,0.01724991,53933.0,53932.0,1.69836162]
[1725811588864,0.01724991,53933.0,53932.0,1.40169262]
[1725811588865,0.01824991,53933.0,53932.0,1.40169262]
[1725811589121,0.01724991,53933.0,53932.0,1.40169262]